[Event "Early-Titled-Tuesday-Blitz-February-20-2024"]
[Site "Chess.com"]
[Date "2024.02.20"]
[Round "5"]
[White "treadstone_71"]
[Black "mortngabriel"]
[Result "0-1"]
[WhiteElo "2330"]
[BlackElo "2532"]
[TimeControl "180+1"]
[EndTime "8:56:16 PST"]
[Termination "mortngabriel won by resignation"]

1. e4 {[%clk 0:03:00.9]} 1... e5 {[%clk 0:03:00.1]} 2. Nf3 {[%clk 0:03:00]} 2...
Nc6 {[%clk 0:03:00.7]} 3. d4 {[%clk 0:03:00.2]} 3... exd4 {[%clk 0:03:00.5]} 4.
Nxd4 {[%clk 0:03:01.1]} 4... Nf6 {[%clk 0:03:00.8]} 5. Nxc6 {[%clk 0:03:00.5]}
5... bxc6 {[%clk 0:03:01.7]} 6. e5 {[%clk 0:03:00.9]} 6... Qe7 {[%clk
0:03:01.2]} 7. Qe2 {[%clk 0:03:01.2]} 7... Nd5 {[%clk 0:03:01.6]} 8. c4 {[%clk
0:03:01.6]} 8... Nb6 {[%clk 0:03:01.5]} 9. Nd2 {[%clk 0:03:01.7]} 9... g6 {[%clk
0:02:46.9]} 10. b3 {[%clk 0:03:01]} 10... Bg7 {[%clk 0:02:41.2]} 11. Bb2 {[%clk
0:03:01.1]} 11... O-O {[%clk 0:02:36.5]} 12. O-O-O {[%clk 0:03:01.1]} 12... d6
{[%clk 0:02:30.6]} 13. f4 {[%clk 0:02:35.5]} 13... d5 {[%clk 0:02:17]} 14. Qf2
{[%clk 0:02:00.8]} 14... Bg4 {[%clk 0:01:46.6]} 15. Re1 {[%clk 0:01:51.5]} 15...
dxc4 {[%clk 0:01:46.5]} 16. Nxc4 {[%clk 0:01:49.7]} 16... Be6 {[%clk 0:01:28.3]}
17. Ba3 {[%clk 0:01:34.6]} 17... Qd8 {[%clk 0:00:51.8]} 18. Rd1 {[%clk
0:01:34.3]} 18... Nd5 {[%clk 0:00:47.4]} 19. h4 {[%clk 0:01:10.2]} 19... Re8
{[%clk 0:00:44]} 20. h5 {[%clk 0:01:09.8]} 20... Qb8 {[%clk 0:00:30.1]} 21. hxg6
{[%clk 0:01:04.6]} 21... fxg6 {[%clk 0:00:24.6]} 22. Bd3 {[%clk 0:01:00.9]}
22... Nc3 {[%clk 0:00:20.7]} 23. Qh4 {[%clk 0:00:49.4]} 23... h6 {[%clk
0:00:20.7]} 24. Rd2 {[%clk 0:00:41.8]} 24... Rd8 {[%clk 0:00:14.4]} 25. Qe7
{[%clk 0:00:31.7]} 25... Bf7 {[%clk 0:00:09.7]} 26. e6 {[%clk 0:00:21.6]} 26...
Be8 {[%clk 0:00:10.1]} 27. Re1 {[%clk 0:00:11.8]} 27... Nxa2+ {[%clk 0:00:09.9]}
28. Rxa2 {[%clk 0:00:11.7]} 28... Rxd3 {[%clk 0:00:07.9]} 29. Rd2 {[%clk
0:00:10.9]} 29... Qxb3 {[%clk 0:00:05.4]} 30. Rc2 {[%clk 0:00:08.2]} 30... Rc3
{[%clk 0:00:04.1]} 31. Re2 {[%clk 0:00:08]} 31... Rxc4 {[%clk 0:00:02.8]} 32.
Qf7+ {[%clk 0:00:06.5]} 32... Kh7 {[%clk 0:00:02.7]} 33. Qxg7+ {[%clk
0:00:05.2]} 33... Kxg7 {[%clk 0:00:02.2]} 34. Bb2+ {[%clk 0:00:06.1]} 34... Kh7
{[%clk 0:00:01.7]} 35. Rxc4 {[%clk 0:00:04.2]} 35... Qxc4+ {[%clk 0:00:02.6]}
36. Rc2 {[%clk 0:00:04.8]} 36... Qxf4+ {[%clk 0:00:02.6]} 37. Kb1 {[%clk
0:00:04.9]} 37... Qd6 {[%clk 0:00:03.3]} 38. Bc3 {[%clk 0:00:05.6]} 38... Qxe6
{[%clk 0:00:03.6]} 0-1

[Event "Early-Titled-Tuesday-Blitz-February-20-2024"]
[Site "Chess.com"]
[Date "2024.02.20"]
[Round "5"]
[White "MVM2008"]
[Black "Predator0608"]
[Result "0-1"]
[WhiteElo "2468"]
[BlackElo "2594"]
[TimeControl "180+1"]
[EndTime "8:56:17 PST"]
[Termination "Predator0608 won by checkmate"]

1. e4 {[%clk 0:02:57.4]} 1... c5 {[%clk 0:02:57.5]} 2. Nf3 {[%clk 0:02:53.6]}
2... d6 {[%clk 0:02:57.5]} 3. d4 {[%clk 0:02:53.1]} 3... cxd4 {[%clk 0:02:58.4]}
4. Nxd4 {[%clk 0:02:53.9]} 4... Nf6 {[%clk 0:02:59]} 5. Nc3 {[%clk 0:02:54.8]}
5... a6 {[%clk 0:02:59.3]} 6. Bc4 {[%clk 0:02:55.4]} 6... e6 {[%clk 0:02:59.3]}
7. Bb3 {[%clk 0:02:55.5]} 7... Nbd7 {[%clk 0:02:59.7]} 8. f4 {[%clk 0:02:48.9]}
8... Nc5 {[%clk 0:02:59.5]} 9. O-O {[%clk 0:02:48.4]} 9... Nfxe4 {[%clk
0:02:59]} 10. Nxe4 {[%clk 0:02:32.7]} 10... Nxe4 {[%clk 0:02:59.9]} 11. f5
{[%clk 0:02:33.4]} 11... e5 {[%clk 0:02:59.9]} 12. Qh5 {[%clk 0:02:28.7]} 12...
d5 {[%clk 0:02:59.5]} 13. Ne6 {[%clk 0:02:14.1]} 13... Bxe6 {[%clk 0:02:18.4]}
14. fxe6 {[%clk 0:02:13.1]} 14... Qb6+ {[%clk 0:02:16.5]} 15. Kh1 {[%clk
0:02:12.4]} 15... Qxe6 {[%clk 0:02:11.4]} 16. Be3 {[%clk 0:01:52.7]} 16... Be7
{[%clk 0:01:50.9]} 17. Rad1 {[%clk 0:01:34.8]} 17... Nf6 {[%clk 0:01:43.5]} 18.
Qf3 {[%clk 0:01:31.3]} 18... e4 {[%clk 0:01:40.9]} 19. Qg3 {[%clk 0:01:31.4]}
19... O-O {[%clk 0:01:36.8]} 20. Bd4 {[%clk 0:01:15.2]} 20... Rad8 {[%clk
0:01:19.1]} 21. Bxf6 {[%clk 0:01:07.2]} 21... Bxf6 {[%clk 0:01:16.1]} 22. Qc7
{[%clk 0:01:01.1]} 22... Rd7 {[%clk 0:01:06]} 23. Qc5 {[%clk 0:01:01.3]} 23...
Rfd8 {[%clk 0:01:05.6]} 24. Rf2 {[%clk 0:00:49.1]} 24... Qe5 {[%clk 0:00:37.8]}
25. Rdf1 {[%clk 0:00:35.3]} 25... Qd6 {[%clk 0:00:26.1]} 26. Qe3 {[%clk
0:00:29.7]} 26... Be5 {[%clk 0:00:24.2]} 27. c4 {[%clk 0:00:21.5]} 27... Bxh2
{[%clk 0:00:22.5]} 28. cxd5 {[%clk 0:00:17.6]} 28... Bg3 {[%clk 0:00:20.5]} 29.
Rf5 {[%clk 0:00:16.8]} 29... Rc8 {[%clk 0:00:18.9]} 30. Qg5 {[%clk 0:00:15.3]}
30... Qg6 {[%clk 0:00:14.7]} 31. Qe3 {[%clk 0:00:02.2]} 31... Bd6 {[%clk
0:00:14.2]} 32. Rg5 {[%clk 0:00:02.6]} 32... Qh6+ {[%clk 0:00:14.1]} 33. Kg1
{[%clk 0:00:02.2]} 33... Bc5 {[%clk 0:00:14.6]} 34. Qxc5 {[%clk 0:00:01.7]}
34... Rxc5 {[%clk 0:00:15.5]} 35. d6 {[%clk 0:00:02.1]} 35... Qxg5 {[%clk
0:00:13.2]} 36. Bxf7+ {[%clk 0:00:02.9]} 36... Rxf7 {[%clk 0:00:12.8]} 37. d7
{[%clk 0:00:03.8]} 37... Qe3+ {[%clk 0:00:12.8]} 38. Kh2 {[%clk 0:00:04.7]}
38... Rh5# {[%clk 0:00:12.6]} 0-1

[Event "Early-Titled-Tuesday-Blitz-February-20-2024"]
[Site "Chess.com"]
[Date "2024.02.20"]
[Round "5"]
[White "EdmundPlayer"]
[Black "cthake"]
[Result "0-1"]
[WhiteElo "2291"]
[BlackElo "1780"]
[TimeControl "180+1"]
[EndTime "8:56:17 PST"]
[Termination "cthake won by checkmate"]

1. Nf3 {[%clk 0:03:00.9]} 1... b6 {[%clk 0:02:59.4]} 2. b3 {[%clk 0:02:57.8]}
2... Bb7 {[%clk 0:02:59.4]} 3. Bb2 {[%clk 0:02:58.1]} 3... e6 {[%clk 0:02:59.2]}
4. c4 {[%clk 0:02:51.7]} 4... f5 {[%clk 0:02:56.8]} 5. g3 {[%clk 0:02:47.6]}
5... Nf6 {[%clk 0:02:56.9]} 6. Bg2 {[%clk 0:02:47.8]} 6... Be7 {[%clk
0:02:56.6]} 7. O-O {[%clk 0:02:46.6]} 7... O-O {[%clk 0:02:56.6]} 8. Nc3 {[%clk
0:02:43.7]} 8... Qe8 {[%clk 0:02:33.5]} 9. Ne1 {[%clk 0:02:19.7]} 9... Bxg2
{[%clk 0:02:31.3]} 10. Nxg2 {[%clk 0:02:20.6]} 10... Nc6 {[%clk 0:02:03.5]} 11.
d4 {[%clk 0:02:16.7]} 11... Qh5 {[%clk 0:01:47.4]} 12. Nf4 {[%clk 0:02:14.5]}
12... Qf7 {[%clk 0:01:45.5]} 13. d5 {[%clk 0:02:09.2]} 13... Nb4 {[%clk
0:01:34.8]} 14. a3 {[%clk 0:01:38.8]} 14... Na6 {[%clk 0:01:33.6]} 15. dxe6
{[%clk 0:01:19]} 15... dxe6 {[%clk 0:01:33.4]} 16. e3 {[%clk 0:01:19.2]} 16...
Rad8 {[%clk 0:01:33.3]} 17. Qf3 {[%clk 0:01:18]} 17... Nc5 {[%clk 0:01:26.9]}
18. b4 {[%clk 0:01:11.6]} 18... Nb3 {[%clk 0:01:25.9]} 19. Rad1 {[%clk
0:01:10.8]} 19... Nd2 {[%clk 0:01:25.9]} 20. Qc6 {[%clk 0:01:05.8]} 20... Nxf1
{[%clk 0:01:24.3]} 21. Rxf1 {[%clk 0:00:55.2]} 21... e5 {[%clk 0:01:22.4]} 22.
Nfd5 {[%clk 0:00:50.1]} 22... Rd6 {[%clk 0:01:22.5]} 23. Qxc7 {[%clk 0:00:45.7]}
23... Nxd5 {[%clk 0:01:06.2]} 24. Nxd5 {[%clk 0:00:44.8]} 24... Re6 {[%clk
0:01:06.2]} 25. Bxe5 {[%clk 0:00:35.1]} 25... Re8 {[%clk 0:00:42.4]} 26. Rd1
{[%clk 0:00:30.9]} 26... g5 {[%clk 0:00:37.6]} 27. f4 {[%clk 0:00:27.9]} 27...
gxf4 {[%clk 0:00:36.3]} 28. exf4 {[%clk 0:00:24.6]} 28... h5 {[%clk 0:00:31.5]}
29. Qxa7 {[%clk 0:00:21.8]} 29... Bc5+ {[%clk 0:00:29.9]} 30. bxc5 {[%clk
0:00:21.5]} 30... Qxa7 {[%clk 0:00:30]} 31. cxb6 {[%clk 0:00:22]} 31... Qxa3
{[%clk 0:00:29.3]} 32. b7 {[%clk 0:00:20.5]} 32... Qc5+ {[%clk 0:00:29.2]} 33.
Kg2 {[%clk 0:00:17.5]} 33... Rxe5 {[%clk 0:00:28.8]} 34. fxe5 {[%clk 0:00:15.6]}
34... Qxc4 {[%clk 0:00:28.2]} 35. Nf6+ {[%clk 0:00:14.9]} 35... Kf7 {[%clk
0:00:24.4]} 36. Rd7+ {[%clk 0:00:09]} 36... Ke6 {[%clk 0:00:21.3]} 37. Nxe8
{[%clk 0:00:06.9]} 37... Qc6+ {[%clk 0:00:18.9]} 38. Kh3 {[%clk 0:00:05.3]}
38... Qxd7 {[%clk 0:00:14]} 39. b8=Q {[%clk 0:00:04.9]} 39... Ke7 {[%clk
0:00:13.8]} 40. Ng7 {[%clk 0:00:03.4]} 40... f4+ {[%clk 0:00:13.8]} 41. Kh4
{[%clk 0:00:03.2]} 41... Qg4# {[%clk 0:00:13.4]} 0-1

[Event "Early-Titled-Tuesday-Blitz-February-20-2024"]
[Site "Chess.com"]
[Date "2024.02.20"]
[Round "5"]
[White "lrestevez"]
[Black "pr1105"]
[Result "0-1"]
[WhiteElo "2186"]
[BlackElo "2398"]
[TimeControl "180+1"]
[EndTime "8:56:18 PST"]
[Termination "pr1105 won on time"]

1. e4 {[%clk 0:02:59.6]} 1... e5 {[%clk 0:02:59.5]} 2. Nf3 {[%clk 0:02:59]} 2...
Nc6 {[%clk 0:02:59.9]} 3. Bc4 {[%clk 0:02:50.3]} 3... Nf6 {[%clk 0:02:58.5]} 4.
d3 {[%clk 0:02:50.6]} 4... Be7 {[%clk 0:02:58.2]} 5. c3 {[%clk 0:02:51.2]} 5...
O-O {[%clk 0:02:58.8]} 6. O-O {[%clk 0:02:51.7]} 6... d5 {[%clk 0:02:59]} 7.
exd5 {[%clk 0:02:51.6]} 7... Nxd5 {[%clk 0:02:59.9]} 8. Qe2 {[%clk 0:02:50.6]}
8... Bg4 {[%clk 0:02:59.8]} 9. h3 {[%clk 0:02:50.3]} 9... Bh5 {[%clk 0:02:58.4]}
10. Qe4 {[%clk 0:02:41]} 10... Nf6 {[%clk 0:02:36.2]} 11. Qe3 {[%clk 0:02:35]}
11... Bd6 {[%clk 0:02:32]} 12. Nbd2 {[%clk 0:02:26.2]} 12... Qe7 {[%clk
0:02:17]} 13. Ne4 {[%clk 0:02:03.1]} 13... Nxe4 {[%clk 0:02:16.7]} 14. dxe4
{[%clk 0:02:02.1]} 14... Bc5 {[%clk 0:02:13.9]} 15. Qe2 {[%clk 0:01:59.7]} 15...
h6 {[%clk 0:02:00.8]} 16. Be3 {[%clk 0:01:59.6]} 16... a5 {[%clk 0:01:54.4]} 17.
Rfd1 {[%clk 0:01:55.9]} 17... Rad8 {[%clk 0:01:47.8]} 18. Bd5 {[%clk 0:01:44.3]}
18... Kh8 {[%clk 0:01:32.5]} 19. Rd2 {[%clk 0:01:43.4]} 19... f5 {[%clk
0:01:13.7]} 20. Rad1 {[%clk 0:01:30.2]} 20... fxe4 {[%clk 0:01:01.4]} 21. Bxe4
{[%clk 0:01:28]} 21... Rxd2 {[%clk 0:00:56.2]} 22. Rxd2 {[%clk 0:01:28.9]} 22...
a4 {[%clk 0:00:53.8]} 23. Bxc5 {[%clk 0:01:24.6]} 23... Qxc5 {[%clk 0:00:54.7]}
24. Rd7 {[%clk 0:01:13.1]} 24... a3 {[%clk 0:00:47.2]} 25. bxa3 {[%clk
0:01:01.5]} 25... Qxc3 {[%clk 0:00:47]} 26. Qd2 {[%clk 0:00:20.2]} 26... Qa1+
{[%clk 0:00:33.2]} 27. Kh2 {[%clk 0:00:19.9]} 27... Bxf3 {[%clk 0:00:31.9]} 28.
Bxf3 {[%clk 0:00:19.6]} 28... Nd4 {[%clk 0:00:31.4]} 29. Bxb7 {[%clk 0:00:15.9]}
29... Qf1 {[%clk 0:00:23.3]} 30. Be4 {[%clk 0:00:15]} 30... Ne2 {[%clk
0:00:18.8]} 31. Qd1 {[%clk 0:00:09.5]} 31... Qxf2 {[%clk 0:00:18.4]} 32. Rd8
{[%clk 0:00:08.8]} 32... Qf4+ {[%clk 0:00:08.4]} 33. Kh1 {[%clk 0:00:05.6]}
33... Qxe4 {[%clk 0:00:04.7]} 34. Rxf8+ {[%clk 0:00:04.6]} 34... Kh7 {[%clk
0:00:05.5]} 35. Rf3 {[%clk 0:00:02.7]} 35... Nf4 {[%clk 0:00:05]} 36. Qf1 {[%clk
0:00:01.8]} 36... c5 {[%clk 0:00:04.8]} 37. Rxf4 {[%clk 0:00:01.8]} 37... exf4
{[%clk 0:00:04.2]} 0-1

[Event "Early-Titled-Tuesday-Blitz-February-20-2024"]
[Site "Chess.com"]
[Date "2024.02.20"]
[Round "5"]
[White "Ezov"]
[Black "arturdailima"]
[Result "0-1"]
[WhiteElo "2175"]
[BlackElo "2383"]
[TimeControl "180+1"]
[EndTime "8:56:20 PST"]
[Termination "arturdailima won by resignation"]

1. d4 {[%clk 0:03:00.9]} 1... Nf6 {[%clk 0:02:59]} 2. Nc3 {[%clk 0:03:00.1]}
2... d5 {[%clk 0:02:56.1]} 3. Bf4 {[%clk 0:02:59]} 3... a6 {[%clk 0:02:55.7]} 4.
Qd2 {[%clk 0:02:58.7]} 4... Bf5 {[%clk 0:02:54.5]} 5. O-O-O {[%clk 0:02:58.2]}
5... e6 {[%clk 0:02:52]} 6. f3 {[%clk 0:02:57.2]} 6... c5 {[%clk 0:02:45.3]} 7.
e3 {[%clk 0:02:56]} 7... Nc6 {[%clk 0:02:45.1]} 8. g4 {[%clk 0:02:54.8]} 8...
Bg6 {[%clk 0:02:44.6]} 9. h4 {[%clk 0:02:53.9]} 9... h5 {[%clk 0:02:43.7]} 10.
g5 {[%clk 0:02:53.5]} 10... Nd7 {[%clk 0:02:43.8]} 11. Bd3 {[%clk 0:02:49.2]}
11... Bxd3 {[%clk 0:02:40.3]} 12. Qxd3 {[%clk 0:02:50.1]} 12... b5 {[%clk
0:02:38.1]} 13. g6 {[%clk 0:02:49.5]} 13... f6 {[%clk 0:02:29.8]} 14. e4 {[%clk
0:02:48.6]} 14... Nxd4 {[%clk 0:02:27.2]} 15. exd5 {[%clk 0:02:47]} 15... e5
{[%clk 0:02:27.4]} 16. Nh3 {[%clk 0:02:30.4]} 16... Nb6 {[%clk 0:02:26.2]} 17.
Qe4 {[%clk 0:02:05.6]} 17... Bd6 {[%clk 0:02:22.9]} 18. Ne2 {[%clk 0:01:50.9]}
18... Nxe2+ {[%clk 0:02:14]} 19. Qxe2 {[%clk 0:01:51.8]} 19... Qc8 {[%clk
0:02:13.6]} 20. Bg3 {[%clk 0:01:31.5]} 20... Qf5 {[%clk 0:02:07.6]} 21. f4
{[%clk 0:01:26.2]} 21... O-O-O {[%clk 0:01:54.3]} 22. fxe5 {[%clk 0:01:25.2]}
22... Bxe5 {[%clk 0:01:53.8]} 23. Bxe5 {[%clk 0:01:23.6]} 23... fxe5 {[%clk
0:01:52.4]} 24. Qe3 {[%clk 0:01:09.1]} 24... Rxd5 {[%clk 0:01:38]} 25. Rxd5
{[%clk 0:01:07.3]} 25... Nxd5 {[%clk 0:01:38.9]} 26. Qxc5+ {[%clk 0:01:06.5]}
26... Nc7 {[%clk 0:01:39.8]} 27. Qe7 {[%clk 0:00:39.5]} 27... Qxg6 {[%clk
0:01:37.7]} 28. Qxe5 {[%clk 0:00:38.5]} 28... Re8 {[%clk 0:01:34]} 29. Qg5
{[%clk 0:00:38]} 29... Qxg5+ {[%clk 0:01:16.7]} 30. Nxg5 {[%clk 0:00:38.9]}
30... Nd5 {[%clk 0:01:08.6]} 31. Rg1 {[%clk 0:00:30.4]} 31... Re2 {[%clk
0:00:57.1]} 32. Nf3 {[%clk 0:00:16.6]} 32... Rf2 {[%clk 0:00:51.3]} 33. Nd4
{[%clk 0:00:16]} 33... Rf4 {[%clk 0:00:43.2]} 34. c3 {[%clk 0:00:15.2]} 34...
Rxh4 {[%clk 0:00:42.5]} 35. Rxg7 {[%clk 0:00:14.3]} 35... Rh1+ {[%clk
0:00:38.8]} 36. Kc2 {[%clk 0:00:13.5]} 36... h4 {[%clk 0:00:38.2]} 37. Rh7
{[%clk 0:00:11.7]} 37... h3 {[%clk 0:00:37.5]} 38. Kb3 {[%clk 0:00:10.7]} 38...
Ne3 {[%clk 0:00:31.8]} 39. Ne6 {[%clk 0:00:09.6]} 39... h2 {[%clk 0:00:29.1]}
40. Nf4 {[%clk 0:00:09]} 40... Ng4 {[%clk 0:00:27.2]} 41. Nh3 {[%clk 0:00:08.2]}
41... Rg1 {[%clk 0:00:20.6]} 42. Nf4 {[%clk 0:00:06.7]} 42... h1=Q {[%clk
0:00:20.5]} 43. Rxh1 {[%clk 0:00:06.1]} 43... Rxh1 {[%clk 0:00:20.7]} 0-1

[Event "Early-Titled-Tuesday-Blitz-February-20-2024"]
[Site "Chess.com"]
[Date "2024.02.20"]
[Round "5"]
[White "Evgeny81"]
[Black "ChEsper99"]
[Result "1-0"]
[WhiteElo "2768"]
[BlackElo "2223"]
[TimeControl "180+1"]
[EndTime "8:56:21 PST"]
[Termination "Evgeny81 won on time"]

1. e4 {[%clk 0:02:59.5]} 1... c5 {[%clk 0:02:57.6]} 2. Nf3 {[%clk 0:02:59.3]}
2... d6 {[%clk 0:02:58]} 3. d4 {[%clk 0:02:57.8]} 3... cxd4 {[%clk 0:02:57]} 4.
Nxd4 {[%clk 0:02:58.7]} 4... Nf6 {[%clk 0:02:57.2]} 5. Nc3 {[%clk 0:02:58.1]}
5... a6 {[%clk 0:02:57.5]} 6. g3 {[%clk 0:02:57.2]} 6... e5 {[%clk 0:02:57]} 7.
Nde2 {[%clk 0:02:56.3]} 7... b5 {[%clk 0:02:50.5]} 8. Bg2 {[%clk 0:02:56.6]}
8... Bb7 {[%clk 0:02:40.9]} 9. O-O {[%clk 0:02:52.4]} 9... Be7 {[%clk
0:02:40.2]} 10. a4 {[%clk 0:02:47.4]} 10... b4 {[%clk 0:02:38.2]} 11. Nd5 {[%clk
0:02:48]} 11... Nxd5 {[%clk 0:02:34.2]} 12. exd5 {[%clk 0:02:48.9]} 12... f5
{[%clk 0:02:30.7]} 13. f4 {[%clk 0:02:46]} 13... e4 {[%clk 0:02:30.4]} 14. Nd4
{[%clk 0:02:41]} 14... g6 {[%clk 0:02:02.4]} 15. Nxf5 {[%clk 0:02:29.7]} 15...
gxf5 {[%clk 0:01:59.9]} 16. Qh5+ {[%clk 0:02:29.6]} 16... Kd7 {[%clk 0:01:58]}
17. Qxf5+ {[%clk 0:02:30.5]} 17... Kc7 {[%clk 0:01:57.1]} 18. Qxe4 {[%clk
0:02:27.2]} 18... Nd7 {[%clk 0:01:52.9]} 19. Qxb4 {[%clk 0:02:22.7]} 19... a5
{[%clk 0:01:40.6]} 20. Qc3+ {[%clk 0:02:09.2]} 20... Kb8 {[%clk 0:01:23.9]} 21.
Be3 {[%clk 0:02:08.2]} 21... Re8 {[%clk 0:01:17.2]} 22. Rfe1 {[%clk 0:01:50.9]}
22... Bf6 {[%clk 0:01:17.2]} 23. Bd4 {[%clk 0:01:50.9]} 23... Bxd4+ {[%clk
0:01:08.1]} 24. Qxd4 {[%clk 0:01:49.7]} 24... Re7 {[%clk 0:00:40.1]} 25. h3
{[%clk 0:01:24.7]} 25... Kc7 {[%clk 0:00:23]} 26. Kh2 {[%clk 0:01:20.4]} 26...
Qe8 {[%clk 0:00:23.2]} 27. Qc3+ {[%clk 0:01:03.5]} 27... Kb8 {[%clk 0:00:15.3]}
28. Rxe7 {[%clk 0:01:00.8]} 28... Qxe7 {[%clk 0:00:16.2]} 29. Re1 {[%clk
0:01:00.9]} 29... Qf6 {[%clk 0:00:11.7]} 30. Qxf6 {[%clk 0:00:52.4]} 30... Nxf6
{[%clk 0:00:11.5]} 31. c4 {[%clk 0:00:52.9]} 31... Ba6 {[%clk 0:00:05]} 32. Re6
{[%clk 0:00:52.4]} 32... Nd7 {[%clk 0:00:02.1]} 33. Rxd6 {[%clk 0:00:52.6]}
33... Kc7 {[%clk 0:00:02.7]} 34. Rc6+ {[%clk 0:00:50.9]} 34... Kd8 {[%clk
0:00:02.7]} 35. b3 {[%clk 0:00:49.5]} 35... Bb7 {[%clk 0:00:02.9]} 36. Rh6
{[%clk 0:00:48.9]} 36... Rb8 {[%clk 0:00:02.2]} 37. Rxh7 {[%clk 0:00:47.3]}
37... Bc8 {[%clk 0:00:02.8]} 38. d6 {[%clk 0:00:44.7]} 38... Nf6 {[%clk
0:00:01.1]} 39. Rf7 {[%clk 0:00:43.1]} 39... Ne8 {[%clk 0:00:01.3]} 40. c5
{[%clk 0:00:40.7]} 40... Rxb3 {[%clk 0:00:01.3]} 41. Bc6 {[%clk 0:00:29.8]}
41... Rb2+ {[%clk 0:00:01.3]} 42. Kg1 {[%clk 0:00:30.5]} 42... Rb1+ {[%clk
0:00:01.5]} 43. Kf2 {[%clk 0:00:31.1]} 43... Rb2+ {[%clk 0:00:02.2]} 44. Ke1
{[%clk 0:00:31.7]} 44... Ba6 {[%clk 0:00:01.8]} 45. Ra7 {[%clk 0:00:21.7]} 45...
Re2+ {[%clk 0:00:01.8]} 46. Kd1 {[%clk 0:00:22.1]} 1-0

[Event "Early-Titled-Tuesday-Blitz-February-20-2024"]
[Site "Chess.com"]
[Date "2024.02.20"]
[Round "5"]
[White "FREDERICKtheMATE"]
[Black "FaustinoOro"]
[Result "0-1"]
[WhiteElo "2679"]
[BlackElo "2902"]
[TimeControl "180+1"]
[EndTime "8:56:22 PST"]
[Termination "FaustinoOro won by resignation"]

1. d4 {[%clk 0:03:00.9]} 1... Nf6 {[%clk 0:02:59.6]} 2. c4 {[%clk 0:03:01.1]}
2... e6 {[%clk 0:02:59.7]} 3. Nf3 {[%clk 0:03:01.4]} 3... b6 {[%clk 0:02:58.8]}
4. g3 {[%clk 0:03:00.7]} 4... Bb7 {[%clk 0:02:59.1]} 5. Bg2 {[%clk 0:03:00.8]}
5... Be7 {[%clk 0:02:58.8]} 6. O-O {[%clk 0:03:01.3]} 6... O-O {[%clk
0:02:59.3]} 7. Nc3 {[%clk 0:03:01.4]} 7... Ne4 {[%clk 0:02:58.9]} 8. Nxe4 {[%clk
0:03:00.9]} 8... Bxe4 {[%clk 0:02:58.5]} 9. Ne5 {[%clk 0:02:57.9]} 9... Bxg2
{[%clk 0:02:56]} 10. Kxg2 {[%clk 0:02:58.8]} 10... d5 {[%clk 0:02:53.9]} 11. Qc2
{[%clk 0:02:53.3]} 11... c5 {[%clk 0:02:38.7]} 12. dxc5 {[%clk 0:02:51.1]} 12...
Bxc5 {[%clk 0:02:38]} 13. Nd3 {[%clk 0:02:40.4]} 13... Be7 {[%clk 0:02:33.7]}
14. Rd1 {[%clk 0:02:36.3]} 14... Nc6 {[%clk 0:02:13.1]} 15. Bf4 {[%clk
0:02:16.8]} 15... Nd4 {[%clk 0:02:01.5]} 16. Qd2 {[%clk 0:02:06.6]} 16... dxc4
{[%clk 0:01:47]} 17. Ne5 {[%clk 0:02:05.3]} 17... Qd5+ {[%clk 0:01:47.2]} 18. e4
{[%clk 0:01:47.6]} 18... Qxe4+ {[%clk 0:01:45]} 19. f3 {[%clk 0:01:47.7]} 19...
Qc2 {[%clk 0:01:45.6]} 20. Rac1 {[%clk 0:01:38.6]} 20... Qxd2+ {[%clk
0:01:41.5]} 21. Rxd2 {[%clk 0:01:39.5]} 21... Nf5 {[%clk 0:01:37.2]} 22. Nc6
{[%clk 0:01:32.7]} 22... Bf6 {[%clk 0:01:27.6]} 23. g4 {[%clk 0:01:25.1]} 23...
Nh4+ {[%clk 0:01:27.3]} 24. Kg3 {[%clk 0:01:22.3]} 24... c3 {[%clk 0:01:11.8]}
25. bxc3 {[%clk 0:01:13.3]} 25... Rfc8 {[%clk 0:01:08.5]} 26. Rd6 {[%clk
0:01:08.3]} 26... g5 {[%clk 0:01:05]} 27. Be3 {[%clk 0:01:00.5]} 27... Ng6
{[%clk 0:01:00.6]} 28. Bd4 {[%clk 0:00:54.9]} 28... Bxd4 {[%clk 0:00:46.8]} 29.
cxd4 {[%clk 0:00:55.8]} 29... Rc7 {[%clk 0:00:42.6]} 30. d5 {[%clk 0:00:44.2]}
30... exd5 {[%clk 0:00:38.1]} 31. Re1 {[%clk 0:00:31.1]} 31... Kf8 {[%clk
0:00:26.2]} 32. Nd4 {[%clk 0:00:25.2]} 32... Nf4 {[%clk 0:00:23.7]} 33. Re5
{[%clk 0:00:21.6]} 33... Rc4 {[%clk 0:00:19.1]} 34. Nc6 {[%clk 0:00:16.6]} 34...
Ne6 {[%clk 0:00:11.4]} 35. Rexd5 {[%clk 0:00:16.1]} 35... h6 {[%clk 0:00:10]}
36. Nd4 {[%clk 0:00:15.5]} 36... Nf4 {[%clk 0:00:09.6]} 37. Rd8+ {[%clk
0:00:14.2]} 37... Rxd8 {[%clk 0:00:09.1]} 38. Rxd8+ {[%clk 0:00:15.1]} 38... Ke7
{[%clk 0:00:09.4]} 39. Rh8 {[%clk 0:00:08.9]} 39... Rxd4 {[%clk 0:00:09.1]} 40.
Rxh6 {[%clk 0:00:09.5]} 40... Rd2 {[%clk 0:00:09.4]} 0-1